[Event "*** Titled Tuesday Blitz"]
[Site "Chess.com"]
[Date "2020.04.14"]
[Round "9"]
[White "kintoho"]
[Black "JiaHaoxiang"]
[Result "1-0"]
[WhiteElo "2465"]
[BlackElo "2591"]
[TimeControl "180+1"]
[EndTime "11:45:34 PDT"]
[Termination "kintoho won by checkmate"]

1. e4 {[%clk 0:03:00.9]} 1... c5 {[%clk 0:02:59.9]} 2. Nf3 {[%clk 0:02:59.7]}
2... e6 {[%clk 0:02:59.8]} 3. c3 {[%clk 0:02:58.4]} 3... Nf6 {[%clk 0:02:59.4]}
4. e5 {[%clk 0:02:58.4]} 4... Nd5 {[%clk 0:02:59.8]} 5. d4 {[%clk 0:02:56.6]}
5... cxd4 {[%clk 0:03:00.7]} 6. cxd4 {[%clk 0:02:56.6]} 6... d6 {[%clk
0:03:01.3]} 7. a3 {[%clk 0:02:56.1]} 7... Nc6 {[%clk 0:02:55.1]} 8. Bd3 {[%clk
0:02:55.8]} 8... dxe5 {[%clk 0:02:28.1]} 9. dxe5 {[%clk 0:02:54.5]} 9... Bc5
{[%clk 0:02:23.2]} 10. O-O {[%clk 0:02:53.1]} 10... Bd7 {[%clk 0:02:11.1]} 11.
Bd2 {[%clk 0:02:50.7]} 11... Nd4 {[%clk 0:02:06.7]} 12. Nc3 {[%clk 0:02:45.4]}
12... Nxf3+ {[%clk 0:02:02.2]} 13. Qxf3 {[%clk 0:02:44.3]} 13... Nxc3 {[%clk
0:02:01.5]} 14. Bxc3 {[%clk 0:02:43.6]} 14... Bc6 {[%clk 0:02:01.7]} 15. Qg3
{[%clk 0:02:41.6]} 15... g6 {[%clk 0:02:00.7]} 16. Rfd1 {[%clk 0:02:38.8]} 16...
Qe7 {[%clk 0:02:00.3]} 17. Rac1 {[%clk 0:02:34]} 17... O-O {[%clk 0:01:59.5]}
18. b4 {[%clk 0:02:33.9]} 18... Bb6 {[%clk 0:01:59.2]} 19. b5 {[%clk 0:02:34]}
19... Bd5 {[%clk 0:01:50.3]} 20. Bb4 {[%clk 0:02:33.8]} 20... Qd8 {[%clk
0:01:43.4]} 21. Bxf8 {[%clk 0:02:33.3]} 21... Qxf8 {[%clk 0:01:44.3]} 22. Bc4
{[%clk 0:02:27.7]} 22... Be4 {[%clk 0:01:36.8]} 23. Qf4 {[%clk 0:02:19.3]} 23...
Bd5 {[%clk 0:01:29.8]} 24. Bxd5 {[%clk 0:02:18.8]} 24... exd5 {[%clk 0:01:30.7]}
25. Rxd5 {[%clk 0:02:14.7]} 25... Qxa3 {[%clk 0:01:30.5]} 26. Rd7 {[%clk
0:02:07.6]} 26... Rf8 {[%clk 0:01:28.7]} 27. Rcd1 {[%clk 0:01:58.3]} 27... Qb2
{[%clk 0:01:27.9]} 28. R7d5 {[%clk 0:01:43.3]} 28... a5 {[%clk 0:01:26.3]} 29.
bxa6 {[%clk 0:01:42.1]} 29... bxa6 {[%clk 0:01:27.2]} 30. h4 {[%clk 0:01:41.7]}
30... h5 {[%clk 0:01:25.2]} 31. Rd6 {[%clk 0:01:36.1]} 31... a5 {[%clk
0:01:23.3]} 32. Qg3 {[%clk 0:01:27.9]} 32... Kg7 {[%clk 0:01:18.3]} 33. Qf3
{[%clk 0:01:22.1]} 33... Kg8 {[%clk 0:01:10.9]} 34. R1d2 {[%clk 0:01:13.1]}
34... Qa1+ {[%clk 0:01:06.8]} 35. Qd1 {[%clk 0:01:09.5]} 35... Qxd1+ {[%clk
0:01:05.9]} 36. Rxd1 {[%clk 0:01:09.7]} 36... Bc5 {[%clk 0:01:06]} 37. Rd7
{[%clk 0:01:06]} 37... a4 {[%clk 0:01:03.1]} 38. Rc1 {[%clk 0:01:03.6]} 38...
Bb6 {[%clk 0:00:59.8]} 39. Rb7 {[%clk 0:01:02.1]} 39... Bd4 {[%clk 0:01:00]} 40.
Rb4 {[%clk 0:00:55.5]} 40... Bxe5 {[%clk 0:00:56.6]} 41. Rxa4 {[%clk 0:00:55.5]}
41... Bf6 {[%clk 0:00:54.5]} 42. g3 {[%clk 0:00:55.1]} 42... Kg7 {[%clk
0:00:54.2]} 43. Rb1 {[%clk 0:00:51.8]} 43... Rd8 {[%clk 0:00:42.1]} 44. Rb7
{[%clk 0:00:50.2]} 44... Rf8 {[%clk 0:00:36.3]} 45. Rab4 {[%clk 0:00:49.4]}
45... Rd8 {[%clk 0:00:35.2]} 46. Kg2 {[%clk 0:00:48.7]} 46... Rd5 {[%clk
0:00:34.3]} 47. R7b5 {[%clk 0:00:42.1]} 47... Rd2 {[%clk 0:00:33.1]} 48. Rf4
{[%clk 0:00:38.7]} 48... Rd6 {[%clk 0:00:31.6]} 49. Rb3 {[%clk 0:00:37.1]} 49...
Re6 {[%clk 0:00:27.7]} 50. Kf1 {[%clk 0:00:35.2]} 50... Rd6 {[%clk 0:00:27.1]}
51. Rb7 {[%clk 0:00:32.3]} 51... Re6 {[%clk 0:00:26.8]} 52. Rc4 {[%clk 0:00:30]}
52... Re8 {[%clk 0:00:22.3]} 53. Rcc7 {[%clk 0:00:30]} 53... Rf8 {[%clk
0:00:21.7]} 54. f4 {[%clk 0:00:30.4]} 54... Kg8 {[%clk 0:00:20.6]} 55. Kf2
{[%clk 0:00:30.9]} 55... Kg7 {[%clk 0:00:21]} 56. Kf3 {[%clk 0:00:31.2]} 56...
Kg8 {[%clk 0:00:21.5]} 57. f5 {[%clk 0:00:31.6]} 57... Kg7 {[%clk 0:00:19.5]}
58. fxg6 {[%clk 0:00:31.1]} 58... Kxg6 {[%clk 0:00:19.9]} 59. Rc6 {[%clk
0:00:31.2]} 59... Kg7 {[%clk 0:00:20.2]} 60. Kf4 {[%clk 0:00:31.1]} 60... Rd8
{[%clk 0:00:19.7]} 61. Rcc7 {[%clk 0:00:29.8]} 61... Rf8 {[%clk 0:00:18.3]} 62.
Kf5 {[%clk 0:00:30.2]} 62... Bd4 {[%clk 0:00:17.6]} 63. Rd7 {[%clk 0:00:29.5]}
63... Bf2 {[%clk 0:00:17.5]} 64. Kf4 {[%clk 0:00:27.8]} 64... Be1 {[%clk
0:00:16]} 65. Rd4 {[%clk 0:00:27.8]} 65... Bc3 {[%clk 0:00:15.4]} 66. Rd5 {[%clk
0:00:27.7]} 66... Rh8 {[%clk 0:00:13.6]} 67. Rc7 {[%clk 0:00:26.8]} 67... Bf6
{[%clk 0:00:10.9]} 68. Rf5 {[%clk 0:00:26.2]} 68... Rd8 {[%clk 0:00:08.8]} 69.
Rxh5 {[%clk 0:00:25.8]} 69... Rd4+ {[%clk 0:00:07.8]} 70. Ke3 {[%clk 0:00:23.4]}
70... Rg4 {[%clk 0:00:07.5]} 71. Kf3 {[%clk 0:00:22.7]} 71... Rg6 {[%clk
0:00:07.6]} 72. Rf5 {[%clk 0:00:21.5]} 72... Rh6 {[%clk 0:00:07.2]} 73. g4
{[%clk 0:00:20.8]} 73... Rxh4 {[%clk 0:00:07.3]} 74. g5 {[%clk 0:00:21.1]} 74...
Bd8 {[%clk 0:00:05.1]} 75. Rd7 {[%clk 0:00:18.6]} 75... Kg6 {[%clk 0:00:03]} 76.
Rfxf7 {[%clk 0:00:16.9]} 76... Bxg5 {[%clk 0:00:03.1]} 77. Rg7+ {[%clk
0:00:17.1]} 77... Kf6 {[%clk 0:00:03.5]} 78. Rdf7+ {[%clk 0:00:17.2]} 78... Ke6
{[%clk 0:00:04.1]} 79. Ra7 {[%clk 0:00:16.3]} 79... Bf6 {[%clk 0:00:04.2]} 80.
Rg6 {[%clk 0:00:15.7]} 80... Kf5 {[%clk 0:00:04.5]} 81. Rg8 {[%clk 0:00:16]}
81... Rh3+ {[%clk 0:00:04.8]} 82. Kg2 {[%clk 0:00:16.6]} 82... Rd3 {[%clk
0:00:04.9]} 83. Rf7 {[%clk 0:00:16.5]} 83... Ke6 {[%clk 0:00:04.8]} 84. Rgf8
{[%clk 0:00:16.1]} 84... Be5 {[%clk 0:00:04.5]} 85. Rf3 {[%clk 0:00:14.5]} 85...
Rxf3 {[%clk 0:00:04.2]} 86. Kxf3 {[%clk 0:00:14.6]} 86... Kd5 {[%clk 0:00:03.9]}
87. Rf5 {[%clk 0:00:13.8]} 87... Kd6 {[%clk 0:00:02.5]} 88. Ke4 {[%clk 0:00:14]}
88... Bc3 {[%clk 0:00:02.8]} 89. Rf3 {[%clk 0:00:13.7]} 89... Bb4 {[%clk
0:00:02]} 90. Rb3 {[%clk 0:00:12.9]} 90... Bc5 {[%clk 0:00:02]} 91. Rb2 {[%clk
0:00:12.3]} 91... Kc6 {[%clk 0:00:01.4]} 92. Ke5 {[%clk 0:00:12.7]} 92... Bd6+
{[%clk 0:00:01.3]} 93. Kd4 {[%clk 0:00:12.5]} 93... Bc5+ {[%clk 0:00:01.3]} 94.
Kc4 {[%clk 0:00:12.8]} 94... Bb6 {[%clk 0:00:01.8]} 95. Rh2 {[%clk 0:00:12.2]}
95... Kb7 {[%clk 0:00:02.4]} 96. Rh6 {[%clk 0:00:12.2]} 96... Bc7 {[%clk
0:00:02.5]} 97. Kb5 {[%clk 0:00:12.2]} 97... Ka8 {[%clk 0:00:02.7]} 98. Rh7
{[%clk 0:00:12.2]} 98... Bb8 {[%clk 0:00:03]} 99. Kb6 {[%clk 0:00:11.9]} 99...
Bd6 {[%clk 0:00:02.9]} 100. Ra7+ {[%clk 0:00:11.4]} 100... Kb8 {[%clk
0:00:03.1]} 101. Rd7 {[%clk 0:00:11.4]} 101... Bf4 {[%clk 0:00:01.8]} 102. Rd8#
{[%clk 0:00:11.5]} 1-0

[Event "*** Titled Tuesday Blitz"]
[Site "Chess.com"]
[Date "2020.04.14"]
[Round "9"]
[White "Sharafiev_Azat"]
[Black "picturesquecheck"]
[Result "0-1"]
[WhiteElo "2479"]
[BlackElo "2220"]
[TimeControl "180+1"]
[EndTime "11:45:36 PDT"]
[Termination "picturesquecheck won on time"]

1. c4 {[%clk 0:02:58.7]} 1... c5 {[%clk 0:02:57.5]} 2. Nf3 {[%clk 0:02:58.6]}
2... Nc6 {[%clk 0:02:57.4]} 3. Nc3 {[%clk 0:02:55.9]} 3... g6 {[%clk 0:02:56.9]}
4. e3 {[%clk 0:02:55.2]} 4... d6 {[%clk 0:02:32.8]} 5. d4 {[%clk 0:02:50.7]}
5... cxd4 {[%clk 0:02:32.1]} 6. exd4 {[%clk 0:02:50.3]} 6... Bg7 {[%clk
0:02:32.6]} 7. d5 {[%clk 0:02:48.9]} 7... Nb8 {[%clk 0:02:28.5]} 8. h3 {[%clk
0:02:43.2]} 8... Nf6 {[%clk 0:02:28.6]} 9. Bd3 {[%clk 0:02:43.6]} 9... O-O
{[%clk 0:02:28]} 10. O-O {[%clk 0:02:44]} 10... a5 {[%clk 0:02:28.5]} 11. Re1
{[%clk 0:02:43.3]} 11... Na6 {[%clk 0:02:29.1]} 12. Qe2 {[%clk 0:02:38.9]} 12...
Re8 {[%clk 0:02:28.7]} 13. Be3 {[%clk 0:02:36.5]} 13... Nd7 {[%clk 0:02:28.1]}
14. Bd4 {[%clk 0:02:35.9]} 14... Ndc5 {[%clk 0:02:26.3]} 15. Bc2 {[%clk
0:02:31.2]} 15... Nb4 {[%clk 0:02:23.9]} 16. Bxg7 {[%clk 0:02:29.9]} 16... Kxg7
{[%clk 0:02:22.8]} 17. Nd4 {[%clk 0:02:26.9]} 17... Nxc2 {[%clk 0:02:16.7]} 18.
Qxc2 {[%clk 0:02:26.2]} 18... Qb6 {[%clk 0:02:09.9]} 19. Rad1 {[%clk 0:02:21.1]}
19... Bd7 {[%clk 0:02:07.9]} 20. Re2 {[%clk 0:02:16.5]} 20... Rac8 {[%clk
0:02:00.5]} 21. Rde1 {[%clk 0:02:09.4]} 21... e5 {[%clk 0:01:59.9]} 22. dxe6
{[%clk 0:02:08.4]} 22... fxe6 {[%clk 0:01:54.1]} 23. Qd2 {[%clk 0:02:04.4]}
23... e5 {[%clk 0:01:20.4]} 24. Ndb5 {[%clk 0:01:36.7]} 24... Bxb5 {[%clk
0:01:20]} 25. Nxb5 {[%clk 0:01:35.4]} 25... Rcd8 {[%clk 0:01:16.8]} 26. Nc3
{[%clk 0:01:34.1]} 26... Ne6 {[%clk 0:01:12.9]} 27. Nd5 {[%clk 0:01:24.3]} 27...
Qc5 {[%clk 0:01:10.5]} 28. b3 {[%clk 0:01:23.1]} 28... Rf8 {[%clk 0:01:02.7]}
29. Kh2 {[%clk 0:01:04.8]} 29... Nf4 {[%clk 0:01:00.4]} 30. Nxf4 {[%clk
0:00:57]} 30... Rxf4 {[%clk 0:01:00]} 31. Rxe5 {[%clk 0:00:55.1]} 31... Qxf2
{[%clk 0:00:28.7]} 32. Re7+ {[%clk 0:00:45.5]} 32... Kg8 {[%clk 0:00:28.2]} 33.
Qd5+ {[%clk 0:00:33.9]} 33... Rf7 {[%clk 0:00:25.9]} 34. Re8+ {[%clk 0:00:20.5]}
34... Rxe8 {[%clk 0:00:25.2]} 35. Rxe8+ {[%clk 0:00:21.4]} 35... Kg7 {[%clk
0:00:25.2]} 36. Qxd6 {[%clk 0:00:22]} 36... Qxa2 {[%clk 0:00:21.7]} 37. Qe5+
{[%clk 0:00:21.7]} 37... Kh6 {[%clk 0:00:20.4]} 38. Qe3+ {[%clk 0:00:21.7]}
38... Kg7 {[%clk 0:00:20.5]} 39. Qd4+ {[%clk 0:00:21.3]} 39... Kh6 {[%clk
0:00:20.1]} 40. Rg8 {[%clk 0:00:21.3]} 40... Qf2 {[%clk 0:00:17.5]} 41. Qxf2
{[%clk 0:00:15]} 41... Rxf2 {[%clk 0:00:18.4]} 42. Rb8 {[%clk 0:00:14.9]} 42...
Rb2 {[%clk 0:00:18.2]} 43. Rxb7 {[%clk 0:00:15.1]} 43... a4 {[%clk 0:00:18.9]}
44. b4 {[%clk 0:00:15]} 44... a3 {[%clk 0:00:19.3]} 45. b5 {[%clk 0:00:15.1]}
45... Rb4 {[%clk 0:00:18.4]} 46. Ra7 {[%clk 0:00:14.6]} 46... Rxc4 {[%clk
0:00:18.1]} 47. Rxa3 {[%clk 0:00:14.6]} 47... Rb4 {[%clk 0:00:18.8]} 48. Ra5
{[%clk 0:00:14.9]} 48... Rb2 {[%clk 0:00:19]} 49. Kg3 {[%clk 0:00:14.7]} 49...
Kg5 {[%clk 0:00:19.5]} 50. Ra7 {[%clk 0:00:13.9]} 50... Rxb5 {[%clk 0:00:17.8]}
51. Rxh7 {[%clk 0:00:14.4]} 51... Rb3+ {[%clk 0:00:18.5]} 52. Kh2 {[%clk
0:00:15]} 52... Rb2 {[%clk 0:00:18.3]} 53. Rf7 {[%clk 0:00:15.4]} 53... Rb3
{[%clk 0:00:17.7]} 54. Rf2 {[%clk 0:00:14.4]} 54... Rc3 {[%clk 0:00:17.3]} 55.
Re2 {[%clk 0:00:13.6]} 55... Rb3 {[%clk 0:00:17.5]} 56. g3 {[%clk 0:00:13.9]}
56... Rc3 {[%clk 0:00:17.8]} 57. Kg2 {[%clk 0:00:14.3]} 57... Rb3 {[%clk
0:00:18.2]} 58. Kf2 {[%clk 0:00:14.6]} 58... Ra3 {[%clk 0:00:18]} 59. Re5+
{[%clk 0:00:15.1]} 59... Kf6 {[%clk 0:00:17.6]} 60. Re3 {[%clk 0:00:15.5]} 60...
Ra2+ {[%clk 0:00:17.7]} 61. Kf3 {[%clk 0:00:16]} 61... Ra1 {[%clk 0:00:18.3]}
62. Kg4 {[%clk 0:00:14]} 62... Ra4+ {[%clk 0:00:18.1]} 63. Kf3 {[%clk
0:00:14.2]} 63... Ra1 {[%clk 0:00:18.3]} 64. Re4 {[%clk 0:00:14.5]} 64... Ra3+
{[%clk 0:00:18.3]} 65. Kg4 {[%clk 0:00:15]} 65... Rb3 {[%clk 0:00:17.5]} 66. h4
{[%clk 0:00:15.4]} 66... Rc3 {[%clk 0:00:17.5]} 67. Kf4 {[%clk 0:00:15.7]} 67...
Ra3 {[%clk 0:00:17.2]} 68. Rb4 {[%clk 0:00:15.2]} 68... Ra1 {[%clk 0:00:16.5]}
69. Rb6+ {[%clk 0:00:14.8]} 69... Kf7 {[%clk 0:00:16.4]} 70. Kg5 {[%clk
0:00:14.5]} 70... Ra5+ {[%clk 0:00:16.4]} 71. Kg4 {[%clk 0:00:14.2]} 71... Kg7
{[%clk 0:00:15.3]} 72. Rb4 {[%clk 0:00:12.9]} 72... Kh6 {[%clk 0:00:15]} 73. Kf4
{[%clk 0:00:12.7]} 73... Rc5 {[%clk 0:00:14.6]} 74. g4 {[%clk 0:00:12.4]} 74...
Ra5 {[%clk 0:00:14.7]} 75. Rb7 {[%clk 0:00:11.5]} 75... Ra4+ {[%clk 0:00:14.6]}
76. Kf3 {[%clk 0:00:11.3]} 76... Ra3+ {[%clk 0:00:15.1]} 77. Kf2 {[%clk
0:00:10.8]} 77... Ra2+ {[%clk 0:00:15.4]} 78. Ke3 {[%clk 0:00:10.9]} 78... Ra3+
{[%clk 0:00:15.9]} 79. Ke2 {[%clk 0:00:06.3]} 79... Ra2+ {[%clk 0:00:16.1]} 80.
Kd3 {[%clk 0:00:06.3]} 80... Ra3+ {[%clk 0:00:16.5]} 81. Kd2 {[%clk 0:00:06.4]}
81... Ra2+ {[%clk 0:00:16.6]} 82. Kc3 {[%clk 0:00:06.9]} 82... Ra3+ {[%clk
0:00:17]} 83. Kc2 {[%clk 0:00:07.5]} 83... Ra2+ {[%clk 0:00:17]} 84. Kb3 {[%clk
0:00:07.8]} 84... Rg2 {[%clk 0:00:16.9]} 85. g5+ {[%clk 0:00:07.2]} 85... Kh5
{[%clk 0:00:17.1]} 86. Rh7+ {[%clk 0:00:07.8]} 86... Kg4 {[%clk 0:00:16.8]} 87.
Kc4 {[%clk 0:00:06.9]} 87... Rh2 {[%clk 0:00:17]} 88. Rh6 {[%clk 0:00:05.7]}
88... Rxh4 {[%clk 0:00:15.4]} 89. Rxh4+ {[%clk 0:00:04.4]} 89... Kxh4 {[%clk
0:00:15.3]} 90. Kd3 {[%clk 0:00:05]} 90... Kxg5 {[%clk 0:00:15.9]} 91. Ke3
{[%clk 0:00:05.6]} 91... Kg4 {[%clk 0:00:16.5]} 92. Kf2 {[%clk 0:00:05.7]} 92...
Kh3 {[%clk 0:00:16.6]} 93. Kf1 {[%clk 0:00:03.8]} 93... Kg3 {[%clk 0:00:16.6]}
94. Kg1 {[%clk 0:00:03.9]} 94... g5 {[%clk 0:00:17.1]} 95. Kf1 {[%clk
0:00:04.5]} 95... Kh2 {[%clk 0:00:17.2]} 96. Kf2 {[%clk 0:00:04.7]} 96... g4
{[%clk 0:00:17.8]} 97. Kf1 {[%clk 0:00:04.7]} 97... g3 {[%clk 0:00:18.7]} 0-1

[Event "*** Titled Tuesday Blitz"]
[Site "Chess.com"]
[Date "2020.04.14"]
[Round "9"]
[White "machupichu10"]
[Black "Indianlad"]
[Result "0-1"]
[WhiteElo "2806"]
[BlackElo "2973"]
[TimeControl "180+1"]
[EndTime "11:46:10 PDT"]
[Termination "Indianlad won by resignation"]

1. d4 {[%clk 0:03:00.9]} 1... Nf6 {[%clk 0:03:00.7]} 2. c4 {[%clk 0:02:59.4]}
2... g6 {[%clk 0:03:01.4]} 3. Nf3 {[%clk 0:02:59.7]} 3... Bg7 {[%clk 0:03:01.3]}
4. g3 {[%clk 0:02:59.9]} 4... c5 {[%clk 0:03:01.6]} 5. d5 {[%clk 0:02:59.8]}
5... b5 {[%clk 0:03:01]} 6. Bg2 {[%clk 0:02:55.9]} 6... bxc4 {[%clk 0:02:55.5]}
7. O-O {[%clk 0:02:54]} 7... O-O {[%clk 0:02:54.1]} 8. Nfd2 {[%clk 0:02:53.5]}
8... Ba6 {[%clk 0:02:52.2]} 9. Qc2 {[%clk 0:02:46.9]} 9... d6 {[%clk 0:02:46.7]}
10. Nxc4 {[%clk 0:02:46.2]} 10... Nbd7 {[%clk 0:02:36.4]} 11. Nba3 {[%clk
0:02:45.4]} 11... Nb6 {[%clk 0:02:31.2]} 12. Rd1 {[%clk 0:02:36.4]} 12... Nxc4
{[%clk 0:02:29.3]} 13. Nxc4 {[%clk 0:02:36.1]} 13... Rb8 {[%clk 0:02:29.2]} 14.
Rb1 {[%clk 0:02:31.8]} 14... Nd7 {[%clk 0:02:22.9]} 15. b3 {[%clk 0:02:28.6]}
15... Ne5 {[%clk 0:02:23.5]} 16. Bd2 {[%clk 0:02:07.5]} 16... Qd7 {[%clk
0:02:23.3]} 17. Be1 {[%clk 0:01:37.8]} 17... Bb5 {[%clk 0:01:44.2]} 18. Na5
{[%clk 0:01:30.8]} 18... Qf5 {[%clk 0:01:44.3]} 19. Qxf5 {[%clk 0:01:07.9]}
19... gxf5 {[%clk 0:01:45.2]} 20. Kf1 {[%clk 0:01:04.6]} 20... Rb6 {[%clk
0:01:43.3]} 21. Rbc1 {[%clk 0:01:03.4]} 21... Ra6 {[%clk 0:01:18.1]} 22. a4
{[%clk 0:01:01]} 22... Bd7 {[%clk 0:01:18.8]} 23. h3 {[%clk 0:00:54.5]} 23...
Rb8 {[%clk 0:01:18.3]} 24. f4 {[%clk 0:00:54.5]} 24... Ng6 {[%clk 0:01:16.9]}
25. Rd3 {[%clk 0:00:54.1]} 25... e5 {[%clk 0:00:59.9]} 26. dxe6 {[%clk
0:00:46.8]} 26... fxe6 {[%clk 0:00:59]} 27. Rxc5 {[%clk 0:00:39.2]} 27... dxc5
{[%clk 0:00:47.1]} 28. Rxd7 {[%clk 0:00:39]} 28... Bf8 {[%clk 0:00:47.4]} 29.
Nc4 {[%clk 0:00:24.9]} 29... Ne7 {[%clk 0:00:36.4]} 30. Bb7 {[%clk 0:00:23]}
30... Rc6 {[%clk 0:00:26.7]} 31. Rxe7 {[%clk 0:00:18.4]} 31... Bxe7 {[%clk
0:00:26.7]} 32. Bxc6 {[%clk 0:00:18.7]} 32... Rxb3 {[%clk 0:00:27.6]} 33. Bd7
{[%clk 0:00:17.1]} 33... Kf7 {[%clk 0:00:26.4]} 34. Ne5+ {[%clk 0:00:17.4]}
34... Kf6 {[%clk 0:00:27.1]} 35. g4 {[%clk 0:00:17.5]} 35... Rxh3 {[%clk
0:00:19.8]} 36. g5+ {[%clk 0:00:15.3]} 36... Kg7 {[%clk 0:00:20.5]} 37. Bxe6
{[%clk 0:00:13]} 37... Rh1+ {[%clk 0:00:20.7]} 38. Kf2 {[%clk 0:00:13.6]} 38...
c4 {[%clk 0:00:18.7]} 39. Bc3 {[%clk 0:00:13.2]} 39... Bc5+ {[%clk 0:00:18.5]}
40. e3 {[%clk 0:00:12.4]} 40... Rc1 {[%clk 0:00:14.4]} 41. Bd4 {[%clk
0:00:07.8]} 41... Bxd4 {[%clk 0:00:14.2]} 42. exd4 {[%clk 0:00:08.7]} 42... c3
{[%clk 0:00:15.1]} 43. Nd3 {[%clk 0:00:09.3]} 43... Rd1 {[%clk 0:00:13.9]} 44.
Ke2 {[%clk 0:00:09.7]} 44... c2 {[%clk 0:00:14]} 45. Bb3 {[%clk 0:00:05.2]}
45... Rxd3 {[%clk 0:00:14.5]} 46. Bxc2 {[%clk 0:00:05.9]} 46... Rxd4 {[%clk
0:00:15.2]} 47. Ke3 {[%clk 0:00:05.9]} 47... Rd5 {[%clk 0:00:14.4]} 48. Bb3
{[%clk 0:00:06.5]} 48... Ra5 {[%clk 0:00:12.8]} 49. Kd4 {[%clk 0:00:06.3]} 49...
h6 {[%clk 0:00:13.5]} 50. gxh6+ {[%clk 0:00:06.5]} 50... Kxh6 {[%clk 0:00:14.4]}
51. Bd1 {[%clk 0:00:07.1]} 51... Kg6 {[%clk 0:00:13.5]} 52. Kc4 {[%clk
0:00:07.5]} 52... Kf6 {[%clk 0:00:12]} 53. Bb3 {[%clk 0:00:07.9]} 53... Ra6
{[%clk 0:00:11.5]} 54. Kc5 {[%clk 0:00:06.9]} 54... Rb6 {[%clk 0:00:11.4]} 55.
Bd5 {[%clk 0:00:07.3]} 55... Rb1 {[%clk 0:00:11.2]} 56. Kc6 {[%clk 0:00:05.2]}
56... a5 {[%clk 0:00:08.2]} 57. Kc5 {[%clk 0:00:03.4]} 57... Rb4 {[%clk
0:00:08.3]} 58. Bc6 {[%clk 0:00:03.8]} 58... Rxf4 {[%clk 0:00:08.4]} 59. Kb5
{[%clk 0:00:04.1]} 59... Ke5 {[%clk 0:00:08.5]} 60. Kxa5 {[%clk 0:00:04.7]}
60... Kd6 {[%clk 0:00:09.2]} 61. Kb5 {[%clk 0:00:03.2]} 61... Rf1 {[%clk
0:00:09]} 62. Bg2 {[%clk 0:00:03.2]} 62... Rf2 {[%clk 0:00:09.2]} 63. Ba8 {[%clk
0:00:02.3]} 63... f4 {[%clk 0:00:09.6]} 64. Kc4 {[%clk 0:00:03]} 64... f3 {[%clk
0:00:09.9]} 65. Kd3 {[%clk 0:00:03.6]} 65... Rf1 {[%clk 0:00:09.9]} 66. Ke3
{[%clk 0:00:03.9]} 66... Ra1 {[%clk 0:00:05.7]} 67. Bxf3 {[%clk 0:00:04]} 67...
Ra3+ {[%clk 0:00:06.3]} 68. Kf4 {[%clk 0:00:03.9]} 68... Rxa4+ {[%clk
0:00:07.2]} 69. Be4 {[%clk 0:00:04.5]} 69... Ke6 {[%clk 0:00:07.5]} 70. Ke3
{[%clk 0:00:04]} 70... Ke5 {[%clk 0:00:08.4]} 71. Bc6 {[%clk 0:00:04.6]} 71...
Ra3+ {[%clk 0:00:09.3]} 72. Ke2 {[%clk 0:00:04.7]} 72... Ra6 {[%clk 0:00:10]}
73. Bb7 {[%clk 0:00:04.8]} 73... Rb6 {[%clk 0:00:10.2]} 74. Ba8 {[%clk
0:00:05.4]} 74... Kd4 {[%clk 0:00:11.1]} 75. Kf3 {[%clk 0:00:05.9]} 75... Rf6+
{[%clk 0:00:11.5]} 76. Kg4 {[%clk 0:00:05.3]} 76... Rf8 {[%clk 0:00:12.4]} 77.
Bb7 {[%clk 0:00:04.8]} 77... Ke5 {[%clk 0:00:13.3]} 78. Bc6 {[%clk 0:00:04.5]}
78... Rf6 {[%clk 0:00:13.6]} 79. Bb7 {[%clk 0:00:04.4]} 79... Rf4+ {[%clk
0:00:14.2]} 80. Kg3 {[%clk 0:00:04.8]} 80... Kf5 {[%clk 0:00:14.9]} 81. Bc8+
{[%clk 0:00:05.2]} 81... Kg5 {[%clk 0:00:15.8]} 82. Be6 {[%clk 0:00:02.1]} 82...
Rb4 {[%clk 0:00:16.7]} 83. Kf3 {[%clk 0:00:02]} 83... Kf6 {[%clk 0:00:16.1]} 84.
Bd5 {[%clk 0:00:02.1]} 84... Ke5 {[%clk 0:00:17]} 85. Ba8 {[%clk 0:00:02.7]}
85... Ra4 {[%clk 0:00:16.7]} 86. Bb7 {[%clk 0:00:02.6]} 86... Rc4 {[%clk
0:00:16.9]} 87. Ba8 {[%clk 0:00:02.6]} 87... Rc3+ {[%clk 0:00:17.2]} 88. Ke2
{[%clk 0:00:02.2]} 88... Kd4 {[%clk 0:00:17.9]} 89. Bb7 {[%clk 0:00:03]} 89...
Re3+ {[%clk 0:00:17.9]} 90. Kf2 {[%clk 0:00:03.9]} 90... Rb3 {[%clk 0:00:17.6]}
91. Bc6 {[%clk 0:00:04.4]} 91... Re3 {[%clk 0:00:16.6]} 92. Ba8 {[%clk 0:00:05]}
92... Kd3 {[%clk 0:00:17.1]} 93. Bc6 {[%clk 0:00:04.6]} 93... Kd2 {[%clk
0:00:18]} 94. Bb5 {[%clk 0:00:04.5]} 94... Re5 {[%clk 0:00:18.4]} 95. Bc4 {[%clk
0:00:04.8]} 95... Rf5+ {[%clk 0:00:18.7]} 96. Kg3 {[%clk 0:00:05.4]} 96... Ke3
{[%clk 0:00:18.6]} 97. Be6 {[%clk 0:00:05.9]} 97... Rg5+ {[%clk 0:00:18.9]} 98.
Bg4 {[%clk 0:00:05.7]} 98... Rg8 {[%clk 0:00:18.9]} 99. Kh3 {[%clk 0:00:06.5]}
99... Kf4 {[%clk 0:00:17.5]} 100. Be2 {[%clk 0:00:07.1]} 100... Rg3+ {[%clk
0:00:17.2]} 101. Kh2 {[%clk 0:00:07.6]} 101... Rg5 {[%clk 0:00:15.9]} 102. Kh3
{[%clk 0:00:07.5]} 102... Rg1 {[%clk 0:00:15.5]} 103. Kh2 {[%clk 0:00:07.5]}
103... Re1 {[%clk 0:00:15.8]} 104. Ba6 {[%clk 0:00:06.8]} 104... Re6 {[%clk
0:00:15.9]} 105. Bb7 {[%clk 0:00:07]} 105... Rg6 {[%clk 0:00:15.1]} 106. Kh3
{[%clk 0:00:07.4]} 106... Rg3+ {[%clk 0:00:13.9]} 107. Kh2 {[%clk 0:00:07.5]}
107... Rg5 {[%clk 0:00:13.3]} 108. Kh3 {[%clk 0:00:07.2]} 108... Rb5 {[%clk
0:00:13.6]} 109. Bc6 {[%clk 0:00:07.5]} 109... Rc5 {[%clk 0:00:13.7]} 110. Bb7
{[%clk 0:00:07.2]} 110... Rc2 {[%clk 0:00:14.3]} 111. Ba8 {[%clk 0:00:06.5]}
111... Ra2 {[%clk 0:00:14.4]} 112. Bb7 {[%clk 0:00:06.8]} 112... Ra3+ {[%clk
0:00:14.3]} 113. Kg2 {[%clk 0:00:06.5]} 113... Re3 {[%clk 0:00:14.9]} 114. Bc6
{[%clk 0:00:06.5]} 114... Re2+ {[%clk 0:00:14.3]} 115. Kh3 {[%clk 0:00:05.9]}
115... Rf2 {[%clk 0:00:14.2]} 116. Bb7 {[%clk 0:00:06.2]} 116... Ke3 {[%clk
0:00:14.6]} 117. Bc6 {[%clk 0:00:06.2]} 117... Rf6 {[%clk 0:00:15]} 118. Kg4
{[%clk 0:00:06.4]} 118... Rxc6 {[%clk 0:00:14.9]} 0-1